fUSD/lending_fUSD_20240616
["ID","MTS","AMOUNT","RATE_DAILY","PERIOD"]
[329633032,1718519443751,-500.0,0.00021917,2]
[329633033,1718519443770,-500.0,0.00021917,2]
[329633034,1718519443788,-500.0,0.00021917,2]
[329633035,1718519443812,-500.0,0.00021917,2]
[329633036,1718519443829,-500.0,0.00021917,2]
[329633037,1718519443849,-500.0,0.00021917,2]
[329633038,1718519443861,-500.0,0.00021917,2]
[329633039,1718519443872,-500.0,0.00021917,2]
[329633040,1718519443883,-500.0,0.00021917,2]
[329633041,1718519443908,-523.56,0.00021917,2]
[329633042,1718519443950,-500.0,0.00021917,2]
[329633043,1718519443971,-500.0,0.00021917,2]
[329633044,1718519443993,-784.49,0.00021917,2]
[329633045,1718519444014,-500.0,0.00021917,2]
[329633046,1718519444038,-500.0,0.00021917,2]
[329633048,1718519444050,-500.0,0.00021917,2]
[329633050,1718519444069,-500.0,0.00021917,2]
[329633051,1718519444112,-500.0,0.00021917,2]
[329633052,1718519444124,-500.0,0.00021917,2]
[329633053,1718519444149,-500.0,0.00021917,2]
[329633054,1718519444176,-500.0,0.00021917,2]
[329633055,1718519444194,-500.0,0.00021917,2]
[329633056,1718519444228,-500.0,0.00021917,2]
[329633057,1718519444250,-1409.82,0.00021917,2]
[329633058,1718519444293,-628.68,0.00021917,2]
[329633059,1718519444319,-208.85,0.00021917,2]
[329633060,1718519444350,-500.0,0.00021917,2]
[329633061,1718519444366,-500.0,0.00021917,2]
[329633062,1718519444382,-500.0,0.00021917,2]
[329633063,1718519444400,-500.0,0.00021917,2]
[329633064,1718519444413,-500.0,0.00021917,2]
[329633065,1718519444425,-500.0,0.00021917,2]
[329633066,1718519444444,-193.44711921,0.00021917,2]
[329633067,1718519444464,-500.0,0.00021917,2]
[329633068,1718519444488,-500.0,0.00021917,2]
[329633069,1718519444501,-644.15,0.00021917,2]
[329633070,1718519444520,-500.0,0.00021917,2]
[329633071,1718519444544,-500.0,0.00021917,2]
[329633072,1718519444556,-500.0,0.00021917,2]
[329633073,1718519444571,-500.0,0.00021917,2]
[329633074,1718519444582,-500.0,0.00021917,2]
[329633075,1718519444593,-500.0,0.00021917,2]
[329633076,1718519444604,-1318.25,0.00021917,2]
[329633077,1718519444616,-509.46754366,0.00021917,2]
[329633078,1718519444629,-500.0,0.00021917,2]
[329633079,1718519444643,-500.0,0.00021917,2]
[329633080,1718519444654,-500.0,0.00021917,2]
[329633081,1718519444668,-500.0,0.00021917,2]
[329633082,1718519444683,-500.0,0.00021917,2]
[329633083,1718519444696,-500.0,0.00021917,2]
[329633084,1718519444724,-500.0,0.00021917,2]
[329633085,1718519444738,-500.0,0.00021917,2]
[329633086,1718519444754,-500.0,0.00021917,2]
[329633087,1718519444767,-500.0,0.00021917,2]
[329633088,1718519444778,-500.0,0.00021917,2]
[329633089,1718519444797,-500.0,0.00021917,2]
[329633090,1718519444826,-500.0,0.00021917,2]
[329633091,1718519444839,-500.0,0.00021917,2]
[329633092,1718519444877,-827.33,0.00021917,2]
[329633093,1718519444900,-500.0,0.00021917,2]
[329633094,1718519444913,-500.0,0.00021917,2]
[329633095,1718519444929,-500.0,0.00021917,2]
[329633096,1718519444966,-526.71,0.00021917,2]
[329633097,1718519444997,-500.0,0.00021917,2]
[329633098,1718519445015,-500.0,0.00021917,2]
[329633099,1718519445033,-500.0,0.00021917,2]
[329633100,1718519445044,-500.0,0.00021917,2]
[329633101,1718519445070,-500.0,0.00021917,2]
[329633102,1718519445103,-500.0,0.00021917,2]
[329633103,1718519445137,-500.0,0.00021917,2]
[329633104,1718519445188,-500.0,0.00021917,2]
[329633105,1718519445232,-500.0,0.00021917,2]
[329633106,1718519445250,-500.0,0.00021917,2]
[329633107,1718519445264,-500.0,0.00021917,2]
[329633108,1718519445276,-500.0,0.00021917,2]
[329633109,1718519445315,-500.0,0.00021917,2]
[329633110,1718519445334,-500.0,0.00021917,2]
[329633111,1718519445367,-626.32090619,0.00021917,2]
[329633112,1718519445384,-500.0,0.00021917,2]
[329633113,1718519445420,-500.0,0.00021917,2]
[329633114,1718519445448,-500.0,0.00021917,2]
[329633115,1718519445460,-666.89,0.00021917,2]
[329633116,1718519445496,-1530.6,0.00021917,2]
[329633117,1718519445515,-528.0,0.00021917,2]
[329633118,1718519445534,-500.0,0.00021917,2]
[329633119,1718519445545,-500.0,0.00021917,2]
[329633120,1718519445558,-500.0,0.00021917,2]
[329633121,1718519445588,-500.0,0.00021917,2]
[329633122,1718519445599,-1305.62,0.00021917,2]
[329633123,1718519445609,-2959.08,0.00021917,2]
[329633124,1718519445620,-522.92042804,0.00021917,2]
[329633125,1718519445646,-500.0,0.00021917,2]
[329633126,1718519445664,-572.8,0.00021917,2]
[329633127,1718519445688,-500.0,0.00021917,2]
[329633128,1718519445711,-955.18,0.00021917,2]
[329633129,1718519445741,-6771.39,0.00021917,2]
[329633130,1718519445765,-500.0,0.00021917,2]
[329633131,1718519445778,-2751.09,0.00021917,2]
[329633132,1718519445790,-500.0,0.00021917,2]
[329633133,1718519445802,-500.0,0.00021917,2]
[329633134,1718519445815,-556.12,0.00021917,2]
[329633135,1718519445827,-500.0,0.00021917,2]
[329633136,1718519445839,-3000.0,0.00021917,2]
[329633137,1718519445850,-500.0,0.00021917,2]
[329633138,1718519445861,-500.0,0.00021917,2]
[329633139,1718519445873,-500.0,0.00021917,2]
[329633140,1718519445889,-500.0,0.00021917,2]
[329633141,1718519445901,-4111.44,0.00021917,2]
[329633142,1718519445927,-500.0,0.00021917,2]
[329633143,1718519445965,-517.38,0.00021917,2]
[329633144,1718519445978,-500.0,0.00021917,2]
[329633145,1718519445991,-500.0,0.00021917,2]
[329633146,1718519446015,-1089.23,0.00021917,2]
[329633147,1718519446027,-500.0,0.00021917,2]
[329633148,1718519446039,-752.44,0.00021917,2]
[329633149,1718519446054,-500.0,0.00021917,2]
[329633150,1718519446066,-732.83,0.00021917,2]
[329633151,1718519446078,-500.0,0.00021917,2]
[329633152,1718519446089,-500.0,0.00021917,2]
[329633153,1718519446112,-598.68,0.00021917,2]
[329633154,1718519446128,-396.99511335,0.00021917,2]
[329633155,1718519446143,-994.84,0.00021917,2]
[329633156,1718519446154,-5825.82,0.00021917,2]
[329633157,1718519446170,-500.0,0.00021917,2]
[329633158,1718519446185,-16567.34,0.00021917,2]
[329633159,1718519446198,-500.0,0.00021917,2]
[329633160,1718519446216,-923.48,0.00021917,2]
[329633161,1718519446230,-896.52,0.00021917,2]
[329633162,1718519446249,-500.0,0.00021917,2]
[329633163,1718519446260,-500.0,0.00021917,2]
[329633164,1718519446275,-565.58,0.00021917,2]
[329633165,1718519446294,-16140.01,0.00021917,2]
[329633166,1718519446325,-500.0,0.00021917,2]
[329633167,1718519446339,-867.54,0.00021917,2]
[329633168,1718519446366,-500.0,0.00021917,2]
[329633169,1718519446426,-500.0,0.00021917,2]
[329633170,1718519446453,-720.86,0.00021917,2]
[329633171,1718519446496,-500.0,0.00021917,2]
[329633172,1718519446509,-500.0,0.00021917,2]
[329633173,1718519446533,-1400.95,0.00021917,2]
[329633174,1718519446552,-500.0,0.00021917,2]
[329633175,1718519446564,-500.0,0.00021917,2]
[329633176,1718519446577,-883.04,0.00021917,2]
[329633177,1718519446593,-788.31,0.00021917,2]
[329633178,1718519446616,-614.72,0.00021917,2]
[329633179,1718519446634,-1333.44,0.00021917,2]
[329633180,1718519446646,-123.52208744,0.00021917,2]
[329633181,1718519447032,-513.11791256,0.00021917,2]
[329633182,1718519447051,-1108.65,0.00021917,2]
[329633183,1718519447065,-1584.23,0.00021917,2]
[329633184,1718519447076,-1022.08842264,0.00021917,2]
[329633186,1718519447181,-549.90157736,0.00021917,2]
[329633187,1718519447194,-4835.69,0.00021917,2]
[329633188,1718519447213,-500.0,0.00021917,2]
[329633189,1718519447227,-675.02,0.00021917,2]
[329633190,1718519447238,-1506.09,0.00021917,2]
[329633191,1718519447251,-547.67,0.00021917,2]
[329633192,1718519447270,-500.0,0.00021917,2]
[329633193,1718519447281,-500.0,0.00021917,2]
[329633194,1718519447293,-500.0,0.00021917,2]
[329633195,1718519447307,-2665.25,0.00021917,2]
[329633196,1718519447320,-500.0,0.00021917,2]
[329633197,1718519447331,-500.0,0.00021917,2]
[329633198,1718519447343,-768.07,0.00021917,2]
[329633199,1718519447354,-500.58,0.00021917,2]
[329633200,1718519447366,-500.0,0.00021917,2]
[329633201,1718519447377,-500.0,0.00021917,2]
[329633202,1718519447388,-2906.49,0.00021917,2]
[329633203,1718519447408,-551.95,0.00021917,2]
[329633204,1718519447425,-1245.63,0.00021917,2]
[329633205,1718519447439,-500.0,0.00021917,2]
[329633206,1718519447469,-679.0,0.00021917,2]
[329633207,1718519447492,-954.41,0.00021917,2]
[329633208,1718519447505,-500.0,0.00021917,2]
[329633209,1718519447521,-500.0,0.00021917,2]
[329633210,1718519447537,-500.0,0.00021917,2]
[329633211,1718519447552,-500.0,0.00021917,2]
[329633212,1718519447577,-500.0,0.00021917,2]
[329633213,1718519447601,-998.69,0.00021917,2]
[329633214,1718519447612,-500.0,0.00021917,2]
[329633215,1718519447623,-500.0,0.00021917,2]
[329633216,1718519447634,-500.0,0.00021917,2]
[329633217,1718519447646,-526.53,0.00021917,2]
[329633218,1718519447676,-500.0,0.00021917,2]
[329633219,1718519447688,-574.1,0.00021917,2]
[329633220,1718519447708,-500.0,0.00021917,2]
[329633221,1718519447732,-1602.8,0.00021917,2]
[329633222,1718519447745,-500.0,0.00021917,2]
[329633223,1718519447764,-500.0,0.00021917,2]
[329633224,1718519447788,-1766.79,0.00021917,2]
[329633225,1718519447805,-500.0,0.00021917,2]
[329633226,1718519447821,-1254.36,0.00021917,2]
[329633227,1718519447833,-500.0,0.00021917,2]
[329633228,1718519447852,-622.71,0.00021917,2]
[329633229,1718519447868,-500.0,0.00021917,2]
[329633230,1718519447883,-1978.99,0.00021917,2]
[329633231,1718519447915,-500.0,0.00021917,2]
[329633232,1718519447929,-1271.11,0.00021917,2]
[329633233,1718519447956,-897.11,0.00021917,2]
[329633234,1718519447967,-1458.59,0.00021917,2]
[329633235,1718519447996,-500.0,0.00021917,2]
[329633236,1718519448007,-673.16,0.00021917,2]
[329633237,1718519448030,-500.0,0.00021917,2]
[329633238,1718519448070,-500.0,0.00021917,2]
[329633239,1718519448083,-503.26,0.00021917,2]
[329633240,1718519448097,-1882.15,0.00021917,2]
[329633241,1718519448109,-900.94,0.00021917,2]
[329633242,1718519448120,-6355.77,0.00021917,2]
[329633243,1718519448132,-797.28,0.00021917,2]
[329633244,1718519448146,-500.0,0.00021917,2]
[329633245,1718519448157,-500.0,0.00021917,2]
[329633246,1718519448174,-500.0,0.00021917,2]
[329633247,1718519448188,-500.0,0.00021917,2]
[329633248,1718519448199,-774.66,0.00021917,2]
[329633249,1718519448210,-500.0,0.00021917,2]
[329633250,1718519448219,-749.71,0.00021917,2]
[329633251,1718519448231,-564.43,0.00021917,2]
[329633252,1718519448242,-500.0,0.00021917,2]
[329633253,1718519448253,-1539.73,0.00021917,2]
[329633254,1718519448289,-500.0,0.00021917,2]
[329633255,1718519448307,-500.0,0.00021917,2]
[329633256,1718519448319,-500.0,0.00021917,2]
[329633257,1718519448333,-500.0,0.00021917,2]
[329633258,1718519448346,-3132.14,0.00021917,2]
[329633259,1718519448357,-500.0,0.00021917,2]
[329633260,1718519448371,-500.0,0.00021917,2]
[329633261,1718519448383,-500.0,0.00021917,2]
[329633262,1718519448395,-500.0,0.00021917,2]
[329633263,1718519448408,-1719.13,0.00021917,2]
[329633264,1718519448420,-500.0,0.00021917,2]
[329633265,1718519448432,-500.0,0.00021917,2]
[329633266,1718519448443,-500.0,0.00021917,2]
[329633267,1718519448457,-877.15,0.00021917,2]
[329633268,1718519448468,-500.0,0.00021917,2]
[329633269,1718519448483,-638.19,0.00021917,2]
[329633270,1718519448502,-327.93288675,0.00021917,2]
[329633271,1718519448517,-172.06711325,0.00021917,2]
[329633272,1718519448530,-500.0,0.00021917,2]
[329633273,1718519448544,-507.88,0.00021917,2]
[329633274,1718519448562,-1256.01,0.00021917,2]
[329633275,1718519448574,-500.0,0.00021917,2]
[329633276,1718519448599,-1319.04,0.00021917,2]
[329633277,1718519448859,-831.44,0.00021917,2]
[329633278,1718519448872,-500.0,0.00021917,2]
[329633279,1718519448885,-1880.82,0.00021917,2]
[329633280,1718519448903,-889.01,0.00021917,2]
[329633281,1718519448915,-500.0,0.00021917,2]
[329633282,1718519448927,-839.73,0.00021917,2]
[329633283,1718519448941,-1019.43,0.00021917,2]
[329633284,1718519448960,-500.0,0.00021917,2]
[329633285,1718519448982,-876.34,0.00021917,2]
[329633286,1718519449000,-1263.54,0.00021917,2]
[329633287,1718519449033,-1051.98,0.00021917,2]
[329633288,1718519449060,-500.0,0.00021917,2]
[329633289,1718519449074,-500.0,0.00021917,2]
[329633290,1718519449093,-868.27,0.00021917,2]
[329633291,1718519449105,-500.0,0.00021917,2]
[329633292,1718519449128,-500.0,0.00021917,2]
[329633293,1718519449161,-1623.39,0.00021917,2]
[329633294,1718519449185,-970.73,0.00021917,2]
[329633296,1718519449223,-898.14,0.00021917,2]
[329633298,1718519449241,-500.0,0.00021917,2]
[329633299,1718519449252,-826.07,0.00021917,2]
[329633300,1718519449269,-500.0,0.00021917,2]
[329633301,1718519449290,-500.0,0.00021917,2]
[329633302,1718519449304,-1666.34,0.00021917,2]
[329633303,1718519449321,-882.22,0.00021917,2]
[329633304,1718519449365,-500.0,0.00021917,2]
[329633305,1718519449378,-854.76,0.00021917,2]
[329633306,1718519449405,-938.36,0.00021917,2]
[329633307,1718519449420,-1419.04,0.00021917,2]
[329633308,1718519449434,-500.0,0.00021917,2]
[329633309,1718519449445,-535.88,0.00021917,2]
[329633310,1718519449463,-771.1,0.00021917,2]
[329633311,1718519449477,-500.0,0.00021917,2]
[329633312,1718519449491,-500.0,0.00021917,2]
[329633313,1718519449511,-500.0,0.00021917,2]
[329633314,1718519449525,-318.82928604,0.00021917,2]
[329633315,1718519449542,-181.17071396,0.00021917,2]
[329633316,1718519449554,-500.0,0.00021917,2]
[329633317,1718519449566,-404.24962089,0.00021917,2]
[329633318,1718519449581,-95.75037911,0.00021917,2]
[329633319,1718519449624,-1079.11,0.00021917,2]
[329633320,1718519449636,-500.0,0.00021917,2]
[329633321,1718519449647,-546.14,0.00021917,2]
[329633322,1718519449659,-500.0,0.00021917,2]
[329633323,1718519449685,-500.0,0.00021917,2]
[329633324,1718519449701,-637.63,0.00021917,2]
[329633325,1718519449744,-500.0,0.00021917,2]
[329633326,1718519449756,-500.0,0.00021917,2]
[329633327,1718519449771,-534.11,0.00021917,2]
[329633328,1718519449788,-500.0,0.00021917,2]
[329633329,1718519449836,-500.0,0.00021917,2]
[329633330,1718519449850,-990.93,0.00021917,2]
[329633331,1718519449868,-500.0,0.00021917,2]
[329633332,1718519449888,-500.0,0.00021917,2]
[329633333,1718519449900,-733.88,0.00021917,2]
[329633334,1718519449911,-592.82,0.00021917,2]
[329633335,1718519449931,-500.0,0.00021917,2]
[329633336,1718519449949,-500.0,0.00021917,2]
[329633337,1718519449961,-500.0,0.00021917,2]
[329633338,1718519449973,-500.0,0.00021917,2]
[329633339,1718519449988,-500.0,0.00021917,2]
[329633340,1718519450004,-2735.16,0.00021917,2]
[329633341,1718519450024,-599.16,0.00021917,2]
[329633342,1718519450046,-500.0,0.00021917,2]
[329633343,1718519450057,-631.36,0.00021917,2]
[329633344,1718519450067,-500.0,0.00021917,2]
[329633345,1718519450102,-505.74,0.00021917,2]
[329633346,1718519450114,-609.47,0.00021917,2]
[329633347,1718519450129,-500.0,0.00021917,2]
[329633348,1718519450141,-707.73,0.00021917,2]
[329633349,1718519450156,-590.03,0.00021918,2]
[329633350,1718519450170,-163.7,0.00021918,2]
[329633351,1718519450188,-250.0,0.00021918,2]
[329633352,1718519450200,-208.0,0.0002192,2]
[329633353,1718519450226,-1419.38238726,0.00021927,2]
[329633354,1718519450247,-2295.86061274,0.00021927,2]
[329633355,1718519450257,-3664.129,0.00021927,2]
[329633356,1718519450268,-3282.10309438,0.00021927,2]
[329633357,1718519450280,-385.01912969,0.00021927,2]
[329633358,1718519451065,-500.0,0.00021917,2]
[329633359,1718519451080,-29.85777593,0.00021927,2]
[329633360,1718519451107,-1069.58058156,0.00021951,2]
[329633361,1718519451124,-901.8242055,0.00021969,3]
[329633362,1718519451136,-500.0,0.00021999,3]
[329633363,1718519451156,-646.60512,0.00022,2]
[329633364,1718519451173,-2351.11737582,0.00022,2]
[329633365,1718519451184,-2351.11737582,0.00022,2]
[329633366,1718519451208,-2351.11737582,0.00022,2]
[329633367,1718519451244,-2351.11737582,0.00022,2]
[329633368,1718519451268,-2351.11737582,0.00022,2]
[329633369,1718519451284,-2351.11737582,0.00022,2]
[329633370,1718519451308,-2351.11737582,0.00022,2]
[329633371,1718519451330,-2351.11737582,0.00022,2]
[329633372,1718519451345,-2351.11737582,0.00022,2]
[329633373,1718519451365,-2351.11737582,0.00022,2]
[329633374,1718519451390,-2351.11737582,0.00022,2]
[329633375,1718519451406,-2351.11737582,0.00022,2]
[329633376,1718519451425,-2351.11737582,0.00022,2]
[329633377,1718519451439,-2351.11737582,0.00022,2]
[329633378,1718519451462,-2351.11737582,0.00022,2]
[329633379,1718519451474,-2351.11737582,0.00022,2]
[329633380,1718519451486,-2351.11737582,0.00022,2]
[329633381,1718519451497,-2351.11737582,0.00022,2]
[329633382,1718519451508,-2351.11737582,0.00022,2]
[329633383,1718519451518,-2351.11737582,0.00022,2]
[329633384,1718519451544,-2351.11737582,0.00022,2]
[329633385,1718519451566,-2351.11737582,0.00022,2]
[329633386,1718519451580,-2351.11737582,0.00022,2]
[329633387,1718519451593,-2351.11737582,0.00022,2]
[329633388,1718519451604,-2351.11737582,0.00022,2]
[329633389,1718519451619,-2351.11737582,0.00022,2]
[329633390,1718519451637,-2351.11737582,0.00022,2]
[329633391,1718519451659,-2351.11737582,0.00022,2]
[329633392,1718519451676,-2351.11737582,0.00022,2]
[329633393,1718519451712,-2351.11737582,0.00022,2]
[329633394,1718519451724,-2351.11737582,0.00022,2]
[329633395,1718519451734,-2351.11737582,0.00022,2]
[329633396,1718519451745,-2351.11737582,0.00022,2]
[329633397,1718519451755,-2351.11737582,0.00022,2]
[329633398,1718519451765,-2351.11737582,0.00022,2]
[329633399,1718519451775,-2351.11737582,0.00022,2]
[329633400,1718519451787,-2351.11737582,0.00022,2]
[329633401,1718519451798,-2351.11737582,0.00022,2]
[329633402,1718519451809,-2351.11737582,0.00022,2]
[329633403,1718519451828,-2351.11737582,0.00022,2]
[329633404,1718519451857,-2351.11737582,0.00022,2]
[329633405,1718519451881,-2351.11737582,0.00022,2]
[329633406,1718519451892,-2351.11737582,0.00022,2]
[329633407,1718519451903,-2351.11737582,0.00022,2]
[329633408,1718519451914,-2351.11737582,0.00022,2]
[329633409,1718519451928,-2351.11737582,0.00022,2]
[329633410,1718519451971,-2351.11737582,0.00022,2]
[329633411,1718519451985,-2351.11737582,0.00022,2]
[329633412,1718519451997,-2351.11737582,0.00022,2]
[329633413,1718519452009,-2351.11737582,0.00022,2]
[329633414,1718519452022,-2351.11737582,0.00022,2]
[329633415,1718519452036,-2351.11737582,0.00022,2]
[329633416,1718519452049,-2351.11737582,0.00022,2]
[329633417,1718519452060,-2351.11737582,0.00022,2]
[329633418,1718519452073,-2351.11737582,0.00022,2]
[329633419,1718519452087,-2351.11737582,0.00022,2]
[329633420,1718519452106,-2351.11737582,0.00022,2]
[329633421,1718519452124,-2351.11737582,0.00022,2]
[329633422,1718519452136,-2351.11737582,0.00022,2]
[329633423,1718519452152,-2351.11737582,0.00022,2]
[329633424,1718519452172,-2351.11737582,0.00022,2]
[329633425,1718519452183,-2351.11737582,0.00022,2]
[329633426,1718519452196,-2351.11737582,0.00022,2]
[329633427,1718519452214,-2351.11737582,0.00022,2]
[329633428,1718519452233,-2351.11737582,0.00022,2]
[329633429,1718519452246,-2351.11737582,0.00022,2]
[329633430,1718519452259,-2351.11737582,0.00022,2]
[329633431,1718519452273,-2351.11737582,0.00022,2]
[329633432,1718519452284,-2351.11737582,0.00022,2]
[329633433,1718519452312,-2351.11737582,0.00022,2]
[329633434,1718519452325,-2351.11737582,0.00022,2]
[329633435,1718519452337,-2351.11737582,0.00022,2]
[329633436,1718519452347,-2351.11737582,0.00022,2]
[329633437,1718519452363,-2351.11737582,0.00022,2]
[329633438,1718519452392,-2351.11737582,0.00022,2]
[329633439,1718519452404,-2351.11737582,0.00022,2]
[329633440,1718519452436,-2351.11737582,0.00022,2]
[329633441,1718519452454,-2351.11737582,0.00022,2]
[329633442,1718519452465,-2351.11737582,0.00022,2]
[329633443,1718519452476,-2351.11737582,0.00022,2]
[329633444,1718519452486,-2000.0,0.00022136,2]
[329633445,1718519452498,-537.05043027,0.00022181,2]
[329633446,1718519452511,-171.55,0.00022182,2]
[329633447,1718519452529,-212.83795322,0.0002219,2]
[329633448,1718519452543,-398.69604985,0.0002219,2]
[329633449,1718519452560,-500.0,0.0002219,3]
[329633450,1718519452578,-500.0,0.0002219,3]
[329633451,1718519452604,-500.0,0.00022191,3]
[329633452,1718519452618,-500.0,0.00022191,3]
[329633453,1718519452629,-500.0,0.00022191,3]
[329633454,1718519452643,-500.0,0.00022191,3]
[329633455,1718519452658,-500.0,0.00022191,3]
[329633456,1718519452673,-500.0,0.00022191,3]
[329633457,1718519452692,-500.0,0.00022191,3]
[329633458,1718519452707,-539.98477553,0.00022191,3]
[329633459,1718519452724,-500.0,0.00022191,3]
[329633460,1718519452749,-500.0,0.00022191,3]
[329633461,1718519452768,-500.0,0.00022191,3]
[329633462,1718519452786,-500.0,0.00022191,3]
[329633463,1718519452798,-500.0,0.00022191,3]
[329633464,1718519452816,-500.0,0.00022191,3]
[329633465,1718519452844,-500.0,0.00022191,3]
[329633466,1718519452857,-500.0,0.00022191,3]
[329633467,1718519452869,-500.0,0.00022191,3]
[329633468,1718519452897,-500.0,0.00022191,3]
[329633469,1718519452907,-573.07352275,0.00022191,3]
[329633470,1718519452919,-500.0,0.00022191,3]
[329633471,1718519452931,-500.0,0.00022191,3]
[329633472,1718519452949,-500.0,0.00022191,3]
[329633473,1718519452966,-500.0,0.00022191,3]
[329633474,1718519452988,-500.0,0.00022191,3]
[329633475,1718519453021,-500.0,0.00022191,3]
[329633476,1718519453032,-500.0,0.00022191,3]
[329633477,1718519453043,-519.58,0.00022191,3]
[329633478,1718519453076,-500.0,0.00022191,3]
[329633479,1718519453104,-500.0,0.00022191,3]
[329633480,1718519453114,-500.0,0.00022191,3]
[329633481,1718519453130,-500.0,0.00022191,3]
[329633482,1718519453141,-500.0,0.00022191,3]
[329633483,1718519453157,-500.0,0.00022191,3]
[329633484,1718519453175,-500.0,0.00022191,3]
[329633485,1718519453196,-500.0,0.00022191,3]
[329633486,1718519453208,-500.0,0.00022191,3]
[329633487,1718519453225,-500.0,0.00022191,3]
[329633488,1718519453254,-500.0,0.00022191,3]
[329633489,1718519453289,-500.0,0.00022191,3]
[329633490,1718519453308,-500.0,0.00022191,3]
[329633491,1718519453323,-500.0,0.00022191,3]
[329633492,1718519453334,-457.76215592,0.00022191,3]
[329633493,1718519453347,-500.0,0.00022191,3]
[329633494,1718519453360,-500.0,0.00022191,3]
[329633495,1718519453371,-500.0,0.00022191,3]
[329633496,1718519453388,-500.0,0.00022191,3]
[329633497,1718519453402,-500.0,0.00022191,3]
[329633498,1718519453424,-500.0,0.00022191,3]
[329633499,1718519453434,-500.0,0.00022191,3]
[329633500,1718519453452,-500.0,0.00022191,3]
[329633501,1718519453464,-500.0,0.00022191,3]
[329633502,1718519453491,-500.0,0.00022191,3]
[329633503,1718519453509,-500.0,0.00022191,3]
[329633504,1718519453525,-500.0,0.00022191,3]
[329633505,1718519453542,-500.0,0.00022191,3]
[329633506,1718519453556,-500.0,0.00022191,3]
[329633507,1718519453582,-500.0,0.00022191,3]
[329633508,1718519453604,-521.4,0.00022191,3]
[329633509,1718519453623,-500.0,0.00022191,3]
[329633510,1718519453644,-500.0,0.00022191,3]
[329633511,1718519453665,-500.0,0.00022191,3]
[329633512,1718519453683,-422.16224433,0.00022191,3]
[329633513,1718519453720,-500.0,0.00022191,3]
[329633514,1718519453748,-500.0,0.00022191,3]
[329633515,1718519453760,-500.0,0.00022191,3]
[329633516,1718519453779,-843.59,0.00022191,3]
[329633517,1718519453794,-500.0,0.00022191,3]
[329633518,1718519453812,-500.0,0.00022191,3]
[329633519,1718519453824,-500.0,0.00022191,3]
[329633520,1718519453835,-500.0,0.00022191,3]
[329633521,1718519453845,-881.45,0.00022191,3]
[329633522,1718519453857,-500.0,0.00022191,3]
[329633523,1718519453867,-500.0,0.00022191,3]
[329633524,1718519453879,-500.0,0.00022191,3]
[329633525,1718519453892,-500.0,0.00022191,3]
[329633526,1718519453903,-596.3,0.00022191,3]
[329633527,1718519453915,-500.0,0.00022191,3]
[329633528,1718519453933,-500.0,0.00022191,3]
[329633529,1718519453960,-500.0,0.00022191,3]
[329633530,1718519453974,-500.0,0.00022191,3]
[329633531,1718519453991,-500.0,0.00022191,3]
[329633532,1718519454001,-500.0,0.00022191,3]
[329633533,1718519454013,-500.0,0.00022191,3]
[329633534,1718519454025,-517.49,0.00022191,3]
[329633535,1718519454038,-500.0,0.00022191,3]
[329633536,1718519454050,-500.0,0.00022191,3]